bitfinex-derivatives/quotes_BNBF0:USTF0_20250507
["timestamp","ask_amount","ask_price","bid_price","bid_amount"]
[1746638275550,0.33346116,599.77,598.4,3.47622459]
[1746638276553,0.30667312,599.76,598.4,3.47622459]
[1746638277052,0.59704455,599.76,598.4,3.47622459]
[1746638277252,0.29037143,599.76,598.4,3.47622459]
[1746638277553,0.30667865,599.75,598.4,3.47622459]
[1746638278046,0.29037143,599.76,598.4,3.47622459]
[1746638278249,0.33346116,599.77,598.4,3.47622459]
[1746638278451,0.30668107,599.75,598.4,3.47622459]
[1746638278647,0.29048778,599.74,598.4,3.47622459]
[1746638279456,0.30669979,599.73,598.4,3.47622459]
[1746638280155,2.28209383,599.72,598.4,3.47622459]
[1746638280354,1.26720418,599.71,598.4,3.47622459]
[1746638280554,1.26720418,599.7,598.4,3.47622459]
[1746638280755,1.26720418,599.69,598.4,3.47622459]
[1746638281055,1.57390397,599.68,598.4,3.47622459]
[1746638281252,2.28209383,599.67,598.4,3.47622459]
[1746638281455,1.26720418,599.66,598.4,3.47622459]
[1746638281654,2.58879362,599.65,598.4,3.47622459]
[1746638281853,1.26720418,599.64,598.4,3.47622459]
[1746638282057,1.26720418,599.63,598.4,3.47622459]
[1746638282259,1.57390397,599.62,598.4,3.47622459]
[1746638282456,1.26720418,599.61,598.4,3.47622459]
[1746638282753,1.26720418,599.6,598.4,3.47622459]
[1746638282956,1.26720418,599.59,598.4,3.47622459]
[1746638283153,1.26720418,599.58,598.4,3.47622459]
[1746638283359,1.26720418,599.57,598.4,3.47622459]
[1746638283557,1.57390397,599.56,598.4,3.47622459]
[1746638283754,1.26720418,599.55,598.4,3.47622459]
[1746638283957,0.30669979,599.56,598.4,3.47622459]
[1746638283958,2.58879362,599.54,598.4,3.47622459]
[1746638284155,2.28209383,599.53,598.4,3.47622459]
[1746638284355,1.6121233,599.53,598.4,3.47622459]
[1746638284560,2.58621001,599.52,598.4,3.47622459]
[1746638284752,1.26462057,599.51,598.4,3.47622459]
[1746638284954,2.27904988,599.5,598.4,3.47622459]
[1746638285155,2.27904988,599.49,598.4,3.47622459]
[1746638285354,1.26416023,599.48,598.4,3.47622459]
[1746638285554,2.27904988,599.47,598.4,3.47622459]
[1746638285759,2.27904988,599.46,598.4,3.47622459]
[1746638285955,1.26416023,599.45,598.4,3.47622459]
[1746638286159,2.27904988,599.44,598.4,3.47622459]
[1746638286355,1.26416023,599.43,598.4,3.47622459]
[1746638286556,2.27904988,599.42,598.4,3.47622459]
[1746638286855,1.01488965,599.42,598.4,3.47622459]
[1746638287058,1.26354799,599.41,598.4,3.47622459]
[1746638287255,1.26354799,599.4,598.4,3.47622459]
[1746638287559,1.26354799,599.39,598.4,3.47622459]
[1746638287761,1.26354799,599.38,598.4,3.47622459]
[1746638287956,1.26354799,599.37,598.4,3.47622459]
[1746638288161,1.26354799,599.36,598.4,3.47622459]
[1746638288362,2.27843764,599.35,598.4,3.47622459]
[1746638288561,1.26354799,599.34,598.4,3.47622459]
[1746638288762,1.26354799,599.33,598.4,3.47622459]
[1746638288964,1.26354799,599.32,598.4,3.47622459]
[1746638289165,1.26354799,599.31,598.4,3.47622459]
[1746638289363,1.01488965,599.33,598.4,3.47622459]
[1746638290066,1.26233087,599.32,598.4,3.47622459]
[1746638290666,1.30545019,599.33,598.4,3.47622459]
[1746638290965,1.26230025,599.32,598.4,3.47622459]
[1746638291166,2.2771899,599.31,598.4,3.47622459]
[1746638291361,1.26230025,599.3,598.4,3.47622459]
[1746638291561,2.2771899,599.29,598.4,3.47622459]
[1746638291765,2.2771899,599.28,598.4,3.47622459]
[1746638292066,1.26230025,599.27,598.4,3.47622459]
[1746638292262,1.26230025,599.26,598.4,3.47622459]
[1746638292469,1.26230025,599.25,598.4,3.47622459]
[1746638292662,1.26230025,599.24,598.4,3.47622459]
[1746638292868,1.26230025,599.23,598.4,3.47622459]
[1746638293067,1.26230025,599.22,598.4,3.47622459]
[1746638293370,1.26230025,599.21,598.4,3.47622459]
[1746638293667,1.26230025,599.2,598.4,3.47622459]
[1746638293869,2.2771899,599.19,598.4,3.47622459]
[1746638294061,1.26230025,599.18,598.4,3.47622459]
[1746638294262,1.26230025,599.17,598.4,3.47622459]
[1746638294462,2.2771899,599.16,598.4,3.47622459]
[1746638294667,1.26230025,599.15,598.4,3.47622459]
[1746638294868,1.26230025,599.14,598.4,3.47622459]
[1746638295067,2.2771899,599.13,598.4,3.47622459]
[1746638295263,2.2771899,599.12,598.4,3.47622459]
[1746638295467,2.2771899,599.11,598.4,3.47622459]
[1746638295767,2.2771899,599.1,598.4,3.47622459]
[1746638295967,1.26230025,599.09,598.4,3.47622459]
[1746638296167,2.27712681,599.08,598.4,3.47622459]
[1746638296368,2.27712681,599.07,598.4,3.47622459]
[1746638296565,1.26223716,599.06,598.4,3.47622459]
[1746638296764,1.26223716,599.05,598.4,3.47622459]
[1746638296964,2.27712681,599.04,598.4,3.47622459]
[1746638297167,1.26223716,599.03,598.4,3.47622459]
[1746638297366,1.26223716,599.02,598.4,3.47622459]
[1746638297569,1.26223716,599.01,598.4,3.47622459]
[1746638297763,1.26223716,599.0,598.4,3.47622459]
[1746638297968,1.26223716,598.99,598.4,3.47622459]
[1746638298166,1.26223716,598.98,598.4,3.47622459]
[1746638298365,0.29060785,599.25,598.4,3.47622459]
[1746638298366,2.27712681,598.97,598.4,3.47622459]
[1746638298568,1.26223716,598.96,598.4,3.47622459]
[1746638298766,2.27712681,598.96,598.4,3.47622459]
[1746638298970,0.29060785,599.25,598.4,3.47622459]
[1746638298971,2.27712681,598.95,598.4,3.47622459]
[1746638299172,1.26223716,598.94,598.4,3.47622459]
[1746638299365,1.01488965,598.93,598.4,0.33422459]
[1746638299871,2.27565514,598.92,598.4,0.33422459]
[1746638300069,2.27565514,598.91,598.4,0.33422459]
[1746638300268,1.26076549,598.9,598.4,0.33422459]
[1746638300566,1.01488965,598.89,598.4,0.33422459]
[1746638301167,1.01488965,598.88,598.4,0.33422459]
[1746638301671,1.01488965,598.87,598.4,0.33422459]
[1746638301971,1.01488965,598.86,598.4,0.33422459]
[1746638302971,1.01488965,598.85,598.4,0.33422459]
[1746638303374,1.01488965,598.84,598.4,0.33422459]
[1746638304071,1.01488965,599.15,598.4,0.33422459]
[1746638304280,1.25982187,599.14,598.4,0.33422459]
[1746638304476,1.25982187,599.13,598.4,0.33422459]
[1746638304672,1.25982187,599.12,598.4,0.33422459]
[1746638304876,1.25982187,599.11,598.4,0.33422459]
[1746638305083,2.27471152,599.1,598.4,0.33422459]
[1746638305282,1.25982187,599.09,598.4,0.33422459]
[1746638305477,1.25982187,599.08,598.4,0.33422459]
[1746638305781,1.25982187,599.07,598.4,0.33422459]
[1746638305982,2.27471152,599.06,598.4,0.33422459]
[1746638306180,1.25982187,599.05,598.4,0.33422459]
[1746638306378,2.27471152,599.04,598.4,0.33422459]
[1746638306583,2.27471152,599.03,598.4,0.33422459]
[1746638306783,1.25982187,599.02,598.4,0.33422459]
[1746638306982,1.25982187,599.01,598.4,0.33422459]
[1746638307185,1.25982187,599.0,598.4,0.33422459]
[1746638307383,1.25982187,598.99,598.4,0.33422459]
[1746638307580,1.25982187,598.98,598.4,0.33422459]
[1746638307882,1.01488965,598.97,598.4,0.33422459]
[1746638308084,2.27471152,598.96,598.4,0.33422459]
[1746638308282,1.25982187,598.95,598.4,0.33422459]
[1746638308482,1.01488965,598.94,598.4,0.33422459]
[1746638308684,1.25982187,598.93,598.4,0.33422459]
[1746638309081,1.01488965,598.92,598.4,0.33422459]
[1746638309482,2.27571897,598.91,598.4,0.33422459]
[1746638309682,1.26082932,598.9,598.4,0.33422459]
[1746638309878,1.01488965,598.89,598.4,0.33422459]
[1746638310179,1.26082932,598.88,598.4,0.33422459]
[1746638310384,1.01488965,598.87,598.4,0.33422459]
[1746638310785,1.01488965,598.86,598.4,0.33422459]
[1746638311287,1.01488965,598.85,598.4,0.33422459]
[1746638311487,1.26008594,598.84,598.4,0.33422459]
[1746638311782,1.01488965,598.83,598.4,0.33422459]
[1746638312188,1.01488965,598.82,598.4,0.33422459]
[1746638312381,1.01488965,598.81,598.4,0.33422459]
[1746638312885,1.01488965,598.8,598.4,0.33422459]
[1746638313282,1.01488965,598.79,598.4,0.33422459]
[1746638313689,1.01488965,599.08,598.4,0.33422459]
[1746638313887,2.27270824,599.07,598.4,0.33422459]
[1746638314088,1.25781859,599.06,598.4,0.33422459]
[1746638314284,1.25781859,599.05,598.4,0.33422459]
[1746638314483,1.25781859,599.04,598.4,0.33422459]
[1746638314684,1.25781859,599.03,598.4,0.33422459]
[1746638314885,1.25781859,599.02,598.4,0.33422459]
[1746638315088,1.25781859,599.01,598.4,0.33422459]
[1746638315289,2.27270824,599.0,598.4,0.33422459]
[1746638315484,2.27270824,598.99,598.4,0.33422459]
[1746638315685,1.25781859,598.98,598.4,0.33422459]
[1746638315987,1.25781859,598.97,598.4,0.33422459]
[1746638316186,2.27270824,598.96,598.4,0.33422459]
[1746638316388,1.25781859,598.95,598.4,0.33422459]
[1746638316683,1.25781859,598.94,598.4,0.33422459]
[1746638316884,2.27270824,598.93,598.4,0.33422459]
[1746638317085,1.25781859,598.92,598.4,0.33422459]
[1746638317488,1.01488965,598.91,598.4,0.33422459]
[1746638317687,1.25781859,598.9,598.4,0.33422459]
[1746638318193,1.01488965,598.89,598.4,0.33422459]
[1746638318393,1.25781859,598.88,598.4,0.33422459]
[1746638318593,1.01488965,598.87,598.4,0.33422459]
[1746638318788,1.25781859,598.86,598.4,0.33422459]
[1746638318987,1.25726502,598.85,598.4,0.33422459]
[1746638319192,2.27215467,598.84,598.4,0.33422459]
[1746638319391,1.25726502,598.83,598.4,0.33422459]
[1746638319892,1.01488965,598.82,598.4,0.33422459]
[1746638320293,1.01488965,598.81,598.4,0.33422459]
[1746638320693,1.01488965,599.08,598.4,0.33422459]
[1746638320892,1.25648506,599.07,598.4,0.33422459]
[1746638321095,2.27137471,599.06,598.4,0.33422459]
[1746638321287,1.25648506,599.05,598.4,0.33422459]
[1746638321491,1.25648506,599.04,598.4,0.33422459]
[1746638321693,2.27137471,599.03,598.4,0.33422459]
[1746638321990,2.27137471,599.02,598.4,0.33422459]
[1746638322194,2.27137471,599.01,598.4,0.33422459]
[1746638322398,1.25648506,599.0,598.4,0.33422459]
[1746638322596,1.25648506,598.99,598.4,0.33422459]
[1746638322797,1.25410794,598.98,598.4,0.33422459]
[1746638322991,2.26899759,598.97,598.4,0.33422459]
[1746638323194,1.25410794,598.96,598.4,0.33422459]
[1746638323391,1.25410794,598.95,598.4,0.33422459]
[1746638323592,2.26899759,598.94,598.4,0.33422459]
[1746638323896,1.25410794,598.93,598.4,0.33422459]
[1746638324096,1.01488965,598.92,598.4,0.33422459]
[1746638324298,1.25410794,598.91,598.4,0.33422459]
[1746638324598,2.26985997,598.9,598.4,0.33422459]
[1746638324894,2.26985997,598.89,598.4,0.33422459]
[1746638325097,1.25497032,598.88,598.4,0.33422459]
[1746638325398,1.01488965,598.87,598.4,0.33422459]
[1746638325599,1.25497032,598.86,598.4,0.33422459]
[1746638325799,1.01488965,598.85,598.4,0.33422459]
[1746638325999,1.25518604,598.84,598.4,0.33422459]
[1746638326301,1.01488965,598.85,598.4,0.33422459]
[1746638326494,1.01488965,598.84,598.4,0.33422459]
[1746638326897,1.01488965,598.83,598.4,0.33422459]
[1746638327499,1.01488965,598.82,598.4,0.33422459]
[1746638328099,1.01488965,598.81,598.4,0.33422459]
[1746638328599,1.01488965,598.8,598.4,0.33422459]
[1746638328899,1.01488965,599.08,598.4,0.33422459]
[1746638329096,1.25468732,599.07,598.4,0.33422459]
[1746638329297,1.25468732,599.06,598.4,1.08322459]
[1746638329494,1.25468732,599.05,598.4,1.08322459]
[1746638329693,1.25468732,599.04,598.4,1.08322459]
[1746638329900,1.25468732,599.03,598.4,1.08322459]
[1746638330200,1.25583745,599.02,598.4,1.08322459]
[1746638330400,1.25583745,599.01,598.4,1.08322459]
[1746638330602,1.25583745,599.0,598.4,1.08322459]
[1746638330801,2.2707271,598.99,598.4,1.08322459]
[1746638331001,1.25583745,598.98,598.4,1.73022459]
[1746638331203,1.25583745,598.97,598.4,1.73022459]
[1746638331402,2.2707271,598.96,598.4,1.73022459]
[1746638331701,1.25583745,598.95,598.4,1.73022459]
[1746638331904,2.2707271,598.94,598.4,1.73022459]
[1746638332203,2.2707271,598.93,598.4,1.73022459]
[1746638332401,1.25583745,598.92,598.4,1.73022459]
[1746638332602,1.25583745,598.91,598.4,1.73022459]
[1746638332903,1.25583745,598.9,598.4,1.73022459]
[1746638333302,1.01488965,598.89,598.4,1.73022459]
[1746638333503,1.25583745,598.88,598.4,1.73022459]
[1746638333805,1.25759106,598.87,598.4,1.73022459]
[1746638334005,1.25759106,598.86,598.4,1.73022459]
[1746638334206,1.01488965,598.85,598.4,1.73022459]
[1746638334400,2.27248071,598.84,598.4,1.73022459]
[1746638334605,1.01488965,598.83,598.4,1.73022459]
[1746638335002,1.01488965,598.82,598.4,1.73022459]
[1746638335505,1.01488965,598.81,598.4,1.73022459]
[1746638336307,1.01488965,598.8,598.4,1.73022459]
[1746638336908,1.01488965,598.79,598.4,1.73022459]
[1746638337309,1.01488965,598.78,598.4,1.73022459]
[1746638337709,1.01488965,598.77,598.4,1.73022459]
[1746638338110,0.7000356,599.69,598.4,1.73022459]
[1746638338305,0.33352789,599.65,598.4,1.73022459]
[1746638338511,1.26112564,599.64,598.4,1.73022459]
[1746638338706,2.60522866,599.63,598.4,1.73022459]
[1746638338909,1.59467021,599.62,598.4,2.63522459]
[1746638339106,2.91207834,599.61,598.4,2.63522459]
[1746638339305,1.59465773,599.6,598.4,2.63522459]
[1746638339504,2.6052273,599.59,598.4,2.63522459]
[1746638339806,2.60154301,599.58,598.4,2.63522459]
[1746638340106,2.91207698,599.57,598.4,2.63522459]
[1746638340410,1.59467998,599.56,598.4,3.34822459]
[1746638340712,1.59468555,599.55,598.4,3.34822459]
[1746638340906,1.59490821,599.54,598.4,3.34822459]
[1746638341105,1.90175232,599.53,598.4,3.34822459]
[1746638341306,1.59491934,599.52,598.4,3.34822459]
[1746638341507,1.5949249,599.51,598.4,3.34822459]
[1746638341711,1.59493047,599.5,598.4,3.34822459]
[1746638342011,1.90177458,599.49,598.4,3.34822459]
[1746638342310,2.57872169,599.48,598.4,3.34822459]
[1746638342509,1.26131913,599.47,598.4,3.34822459]
[1746638342714,2.27188314,599.46,598.4,3.34822459]
[1746638342909,2.27188314,599.45,598.4,3.34822459]
[1746638343114,1.26131913,599.44,598.4,3.34822459]
[1746638343309,2.27188314,599.43,598.4,3.34822459]
[1746638343510,1.26131913,599.42,598.4,3.34822459]
[1746638343810,1.56815768,599.41,598.4,3.34822459]
[1746638344011,1.56815768,599.4,598.4,3.34822459]
[1746638344210,1.26131913,599.39,598.4,3.34822459]
[1746638344411,2.27188314,599.38,598.4,3.34822459]
[1746638344611,2.27188314,599.37,598.4,3.34822459]
[1746638344812,1.26131913,599.36,598.4,3.34822459]
[1746638345010,1.26131913,599.35,598.4,3.34822459]
[1746638345216,2.27188314,599.34,598.4,3.34822459]
[1746638345416,1.56815768,599.33,598.4,3.34822459]
[1746638345610,2.27188314,599.32,598.4,3.34822459]
[1746638345810,1.56815768,599.31,598.4,3.34822459]
[1746638346011,1.26131913,599.3,598.4,3.34822459]
[1746638346316,2.27188314,599.29,598.4,3.34822459]
[1746638346517,1.56815768,599.28,598.4,3.34822459]
[1746638346816,2.27188314,599.27,598.4,3.34822459]
[1746638347009,1.26131913,599.26,598.4,3.34822459]
[1746638347213,1.31740256,599.27,598.4,3.34822459]
[1746638347214,2.27188314,599.25,598.4,3.34822459]
[1746638347410,2.27188314,599.24,598.4,3.34822459]
[1746638347616,1.26131913,599.23,598.4,3.34822459]
[1746638347816,2.27188314,599.22,598.4,3.34822459]
[1746638348016,1.26131913,599.21,598.4,3.34822459]
[1746638348218,2.27188314,599.2,598.4,3.34822459]
[1746638348412,1.26131913,599.19,598.4,3.34822459]
[1746638348616,2.57872169,599.18,598.4,3.34822459]
[1746638348816,1.26131913,599.17,598.4,3.34822459]
[1746638349121,2.27188314,599.16,598.4,3.34822459]
[1746638349421,1.26131913,599.15,598.4,3.34822459]
[1746638349622,2.27443725,599.14,598.4,3.34822459]
[1746638349815,1.26131913,599.13,598.4,3.34822459]
[1746638350018,1.26131913,599.12,598.4,3.34822459]
[1746638350222,1.26131913,599.11,598.4,3.34822459]
[1746638350419,1.26131913,599.1,598.4,3.34822459]
[1746638350721,2.27443725,599.09,598.4,3.34822459]
[1746638350920,1.26131913,599.08,598.4,3.34822459]
[1746638351216,1.26131913,599.07,598.4,3.34822459]
[1746638351520,1.26131913,599.06,598.4,3.34822459]
[1746638351819,1.26131913,599.05,598.4,3.34822459]
[1746638352022,1.26632618,599.04,598.4,3.34822459]
[1746638352317,2.2794443,599.03,598.4,3.34822459]
[1746638352522,1.26632618,599.02,598.4,3.34822459]
[1746638352715,2.2794443,599.01,598.4,3.34822459]
[1746638352915,2.2794443,599.0,598.4,3.34822459]
[1746638353117,1.26632618,598.99,598.4,3.34822459]
[1746638353421,2.2794443,598.98,598.4,3.34822459]
[1746638353617,1.26632618,598.97,598.4,3.34822459]
[1746638353816,0.29063455,599.19,598.4,3.34822459]
[1746638353817,2.2794443,598.96,598.4,3.34822459]
[1746638354016,1.26632618,598.95,598.4,3.34822459]
[1746638354218,1.26632618,598.94,598.4,3.34822459]
[1746638354517,2.27988637,598.93,598.4,2.70122459]
[1746638354719,2.27988637,598.92,598.4,2.70122459]
[1746638355018,1.26676825,598.91,598.4,2.70122459]
[1746638355219,1.26676825,598.9,598.4,2.70122459]
[1746638355421,2.27988637,598.89,598.4,2.70122459]
[1746638355621,1.26676825,598.88,598.4,2.70122459]
[1746638355925,2.27988637,598.87,598.4,2.70122459]
[1746638356124,1.26676825,598.86,598.4,2.70122459]
[1746638356319,2.27988637,598.85,598.4,2.70122459]
[1746638356518,1.26676825,598.84,598.4,2.70122459]
[1746638356719,1.26676825,598.83,598.4,2.70122459]
[1746638356918,2.27988637,598.82,598.4,2.70122459]
[1746638357120,1.26676825,598.81,598.4,2.70122459]
[1746638357425,1.01311812,598.8,598.4,2.70122459]
[1746638358125,1.01311812,598.79,598.4,2.70122459]
[1746638358525,1.01311812,598.78,598.4,2.70122459]
[1746638359126,1.01311812,598.77,598.4,2.70122459]
[1746638359325,1.01311812,598.77,598.4,1.98822459]
[1746638359821,1.01311812,598.76,598.4,1.98822459]
[1746638360628,1.01311812,598.75,598.4,1.98822459]
[1746638361029,1.01311812,598.74,598.4,1.98822459]
[1746638361330,0.29066004,599.19,598.4,1.98822459]
[1746638361530,1.26718464,599.18,598.4,1.98822459]
[1746638361730,2.28053841,599.17,598.4,1.98822459]
[1746638361928,1.26718464,599.16,598.4,1.98822459]
[1746638362132,2.28053841,599.15,598.4,2.69722459]
[1746638362330,1.26718464,599.14,598.4,2.69722459]
[1746638362525,1.26718464,599.13,598.4,2.69722459]
[1746638362730,1.26718464,599.12,598.4,2.69722459]
[1746638363029,1.26718464,599.11,598.4,2.69722459]
[1746638363229,1.26718464,599.1,598.4,2.69722459]
[1746638363429,1.26718464,599.09,598.4,2.69722459]
[1746638363730,1.26718464,599.08,598.4,2.69722459]
[1746638364031,2.28053841,599.07,598.4,2.69722459]
[1746638364329,2.28053841,599.06,598.4,2.69722459]
[1746638364530,1.26718464,599.05,598.4,2.69722459]
[1746638364829,1.26718464,599.04,598.4,2.69722459]
[1746638365031,1.26718464,599.03,598.4,2.69722459]
[1746638365227,2.28053841,599.02,598.4,2.69722459]
[1746638365434,1.26718464,599.01,598.4,2.69722459]
[1746638365626,2.28053841,599.0,598.4,2.69722459]
[1746638365830,2.28053841,598.99,598.4,2.69722459]
[1746638366031,1.26718464,598.98,598.4,2.69722459]
[1746638366226,1.26718464,598.97,598.4,2.69722459]
[1746638366430,1.26718464,598.96,598.4,2.69722459]
[1746638366631,1.26718464,598.95,598.4,2.69722459]
[1746638366930,1.26718464,598.94,598.4,2.69722459]
[1746638367130,1.26718464,598.93,598.4,2.69722459]
[1746638367327,1.26718464,598.92,598.4,1.94822459]
[1746638367530,2.28053841,598.91,598.4,1.94822459]
[1746638367732,1.26718464,598.9,598.4,1.94822459]
[1746638367928,1.01335377,598.91,598.4,1.94822459]
[1746638367929,1.26718464,598.89,598.4,1.94822459]
[1746638368129,2.28053841,598.88,598.4,1.94822459]
[1746638368327,1.26718464,598.87,598.4,1.94822459]
[1746638368532,1.26718464,598.86,598.4,1.94822459]
[1746638368733,1.26718464,598.85,598.4,1.94822459]
[1746638368931,1.26718464,598.84,598.4,1.94822459]
[1746638369127,1.26718464,598.83,598.4,1.94822459]
[1746638369329,1.01335377,598.84,598.4,1.94822459]
[1746638369631,1.01335377,598.83,598.4,1.94822459]
[1746638370332,1.01335377,598.82,598.4,1.94822459]
[1746638370933,1.01335377,598.81,598.4,1.94822459]
[1746638371330,1.01335377,598.8,598.4,1.94822459]
[1746638372134,0.2906564,599.19,598.4,1.94822459]
[1746638372433,1.2646104,599.18,598.4,1.94822459]
[1746638372629,2.27646951,599.17,598.4,1.94822459]
[1746638372832,1.2646104,599.16,598.4,1.94822459]
[1746638373028,1.2646104,599.15,598.4,1.94822459]
[1746638373229,2.27646951,599.14,598.4,1.94822459]
[1746638373432,1.2646104,599.13,598.4,1.94822459]
[1746638373730,2.27646951,599.12,598.4,1.94822459]
[1746638373929,1.2646104,599.11,598.4,1.94822459]
[1746638374134,1.2646104,599.1,598.4,1.94822459]
[1746638374333,1.2646104,599.09,598.4,1.94822459]
[1746638374533,1.2646104,599.08,598.4,1.94822459]
[1746638374731,1.2646104,599.07,598.4,1.94822459]
[1746638374933,1.2646104,599.06,598.4,1.94822459]
[1746638375130,1.2646104,599.05,598.4,1.94822459]
[1746638375429,1.2646104,599.04,598.4,1.94822459]
[1746638375635,2.27646951,599.03,598.4,1.94822459]
[1746638375830,1.2646104,599.02,598.4,1.94822459]
[1746638376030,1.26449777,599.01,598.4,1.94822459]
[1746638376235,1.26449777,599.0,598.4,1.94822459]
[1746638376436,2.27635688,598.99,598.4,1.94822459]
[1746638376635,1.26449777,598.98,598.4,1.94822459]
[1746638376835,1.26449777,598.97,598.4,1.94822459]
[1746638377032,1.26449777,598.96,598.4,1.94822459]
[1746638377333,2.27635688,598.95,598.4,1.94822459]
[1746638377532,1.26449777,598.94,598.4,1.94822459]
[1746638377736,2.27635688,598.93,598.4,1.94822459]
[1746638378032,1.26472425,598.92,598.4,1.04322459]
[1746638378236,1.26472425,598.91,598.4,1.04322459]
[1746638378431,1.26472425,598.9,598.4,1.04322459]
[1746638378635,1.26472425,598.89,598.4,1.04322459]
[1746638378837,1.26472425,598.88,598.4,1.04322459]
[1746638379038,1.01185911,598.87,598.4,1.04322459]
[1746638379540,1.01185911,598.86,598.4,1.04322459]
[1746638379936,1.01185911,598.85,598.4,1.04322459]
[1746638380438,1.01185911,598.84,598.4,1.04322459]
[1746638380839,1.01185911,598.83,598.4,1.04322459]
[1746638381739,1.01185911,598.82,598.4,1.04322459]
[1746638382337,1.01185911,598.81,598.4,1.04322459]
[1746638382940,1.01185911,598.8,598.4,1.04322459]
[1746638383539,1.01185911,598.79,598.4,1.04322459]
[1746638383736,1.01185911,598.78,598.4,1.04322459]
[1746638384039,1.01185911,598.77,598.4,1.04322459]
[1746638384440,1.01185911,598.76,598.4,1.04322459]
[1746638384939,1.01185911,598.75,598.4,1.04322459]
[1746638385441,0.29065519,599.2,598.4,1.04322459]
[1746638385640,1.26675989,599.19,598.4,1.04322459]
[1746638385841,2.28134018,599.18,598.4,1.04322459]
[1746638386042,1.26675989,599.17,598.4,1.04322459]
[1746638386245,2.28134018,599.16,598.4,1.04322459]
[1746638386444,1.26675989,599.15,598.4,1.04322459]
[1746638386745,1.26675989,599.14,598.4,1.04322459]
[1746638386944,1.26675989,599.13,598.4,1.04322459]
[1746638387145,2.28134018,599.12,598.4,1.04322459]
[1746638387345,1.26675989,599.11,598.4,1.04322459]
[1746638387546,2.28134018,599.1,598.4,1.04322459]
[1746638387746,1.26675989,599.09,598.4,1.04322459]
[1746638387949,1.26675989,599.08,598.4,1.92222459]
[1746638388142,1.26675989,599.07,598.4,1.92222459]
[1746638388346,2.28134018,599.06,598.4,1.92222459]
[1746638388545,1.26675989,599.05,598.4,1.92222459]
[1746638388752,1.26675989,599.04,598.4,1.92222459]
[1746638388946,1.26675989,599.03,598.4,1.92222459]
[1746638389147,2.28134018,599.02,598.4,1.92222459]
[1746638389349,1.26675989,599.01,598.4,1.92222459]
[1746638389542,1.26675989,599.0,598.4,1.92222459]
[1746638389745,1.26675989,598.99,598.4,1.92222459]
[1746638389945,2.28134018,598.98,598.4,1.92222459]
[1746638390147,2.28134018,598.97,598.4,1.92222459]
[1746638390349,1.26675989,598.96,598.4,1.92222459]
[1746638390642,1.26675989,598.95,598.4,1.92222459]
[1746638390847,2.28134018,598.94,598.4,1.92222459]
[1746638391048,2.28134018,598.93,598.4,1.92222459]
[1746638391249,2.28134018,598.93,598.4,1.21322459]
[1746638391250,1.26675989,598.92,598.4,1.21322459]
[1746638391448,2.28134018,598.91,598.4,1.21322459]
[1746638391644,1.26675989,598.9,598.4,1.21322459]
[1746638391849,1.26675989,598.89,598.4,1.21322459]
[1746638392042,1.26675989,598.88,598.4,1.21322459]
[1746638392245,1.26803048,598.87,598.4,1.21322459]
[1746638392443,1.26803048,598.86,598.4,1.21322459]
[1746638392646,1.26803048,598.85,598.4,1.21322459]
[1746638392848,1.26803048,598.84,598.4,1.21322459]
[1746638393049,1.26803048,598.83,598.4,1.21322459]
[1746638393246,1.01458029,598.82,598.4,1.21322459]
[1746638393449,2.2827114,598.81,598.4,1.21322459]
[1746638393651,1.26813111,598.8,598.4,1.21322459]
[1746638393949,2.2827114,598.79,598.4,1.21322459]
[1746638394143,1.01458029,598.79,598.4,1.21322459]
[1746638394349,1.01458029,598.78,598.4,1.21322459]
[1746638394647,1.01458029,598.77,598.4,1.21322459]
[1746638394846,1.01458029,598.76,598.4,1.21322459]
[1746638395150,1.01458029,598.75,598.4,1.21322459]
[1746638395650,1.01458029,598.74,598.4,1.21322459]
[1746638396147,0.29066247,599.19,598.4,1.21322459]
[1746638396347,1.26780331,599.18,598.4,1.21322459]
[1746638396546,2.28372358,599.17,598.4,1.21322459]
[1746638396746,1.26780331,599.16,598.4,1.21322459]
[1746638396949,1.26780331,599.15,598.4,1.21322459]
[1746638397150,2.28372358,599.14,598.4,1.21322459]
[1746638397351,1.26780331,599.13,598.4,1.21322459]
[1746638397547,1.26780331,599.12,598.4,1.21322459]
[1746638397753,1.26671078,599.11,598.4,1.21322459]
[1746638397949,1.26671078,599.1,598.4,1.21322459]
[1746638398150,2.28262995,599.09,598.4,1.21322459]
[1746638398352,1.26670968,599.08,598.4,1.21322459]
[1746638398551,1.26670968,599.07,598.4,1.21322459]
[1746638398754,1.26670968,599.06,598.4,1.21322459]
[1746638398953,1.26670968,599.05,598.4,1.21322459]
[1746638399153,1.26670968,599.04,598.4,1.21322459]
[1746638399350,1.26670968,599.03,598.4,1.21322459]
[1746638399553,2.28262995,599.02,598.4,1.21322459]
[1746638399750,2.28262995,599.01,598.4,1.21322459]
[1746638399954,1.26655925,599.0,598.4,1.21322459]
[1746638400154,1.26655925,598.99,598.4,1.21322459]
[1746638400356,2.28247952,598.98,598.4,1.21322459]
[1746638400550,1.26655925,598.97,598.4,1.21322459]
[1746638400854,2.28247952,598.96,598.4,1.21322459]
[1746638401054,1.26655925,598.95,598.4,1.96922459]
[1746638401253,1.26655925,598.94,598.4,1.96922459]
[1746638401453,1.26655925,598.93,598.4,1.96922459]
[1746638401651,1.26655925,598.92,598.4,1.96922459]
[1746638401858,2.28247952,598.91,598.4,1.96922459]